{"text_format":"1","workbook":"xlsx","n_sheets":2,"sheets":["Kalkulation","Erläuterung "],"not_rendered":{"charts":0,"images":0,"macros":1,"external_links":0,"defined_names":7,"comments":1,"pivot_tables":0},"unopened":[],"bounds":{"document_bytes":16777216,"sheet_cells":100000,"rows_first":2000,"rows_last":500,"rows_between":2000,"halvings":0,"cell_chars":16384,"cell_head_chars":4096},"cells_cut":0,"cells_raw":0,"read":"whole","date_system":"1900"}

{"sheet":"Kalkulation","index":0,"n_rows":109,"n_cols":27,"rows_kept":109,"cut":false,"hidden":false,"merged":[[93,4,93,6],[65,4,65,7],[68,4,68,7],[73,4,73,7],[74,4,74,7],[69,4,69,7],[70,4,70,7],[92,4,92,6],[0,0,0,2],[0,3,0,4],[1,3,1,15],[7,3,7,16],[57,4,57,7],[29,4,29,5],[42,4,42,5],[30,4,30,5],[31,4,31,5],[32,4,32,5],[24,2,27,2],[26,4,26,5],[27,4,27,5],[28,4,28,5],[45,4,45,5],[12,1,12,2],[91,4,91,6],[56,4,56,7],[61,4,61,7],[71,4,71,7],[58,4,58,7],[72,4,72,7],[60,4,60,7],[1,0,1,2],[51,2,53,2],[9,1,9,13],[8,1,8,13],[43,4,43,5],[44,4,44,5],[35,4,35,5],[36,4,36,5],[33,4,33,5],[34,4,34,5],[46,4,46,5],[47,4,47,5],[99,6,99,7],[95,1,95,2],[13,15,13,16],[14,15,14,16],[15,15,15,16],[16,15,16,16],[17,15,17,16],[63,4,63,7],[64,4,64,7],[59,4,59,7],[18,15,18,16],[19,15,19,16],[20,15,20,16],[62,4,62,7],[90,1,91,2],[90,4,90,6]]}
["KN"]
["Unternehmen",null,null,null,null,null,null,null,null,null,null,null,null,null,null,null,null,null,null,null,null,null,null,null,null,null,"ja"]
[null,null,null,null,null,null,null,null,null,null,null,null,null,null,null,null,null,null,null,null,null,null,null,null,null,null,"nein"]
[]
["Eintragungen bitte nur in den grau hinterlegten Feldern",null,null,null,null,null,null,null,null,null,null,null,null,null,null,null,null,null,null,null,null,null,null,null,null,null,45]
[null,null,null,null,null,null,null,null,null,null,null,null,null,null,null,null,null,null,null,null,null,null,null,null,null,null,60]
[null,null,null,"K o s t e n k a l k u l a t i o n "]
["1.","Maßnahmebezeichnung"]
[null,"Handelt es sich um eine Vollzeitmaßnahme bei der das Praktikum fester Bestandteil einer Ausbildungsordnung ist. \n(z.B. Krankenpfleger, Altenpfleger usw.) ?",null,null,null,null,null,null,null,null,null,null,null,null,"nein"]
[null,"Führt der Abschluss der Maßnahme zu einem allgemein anerkannten Ausbildungsberuf",null,null,null,null,null,null,null,null,null,null,null,null,"nein"]
[null,{"$f":"IF($O$10=\"ja\",\"Wie lange ist die Ausbildungszeit zu diesem Beruf regulär ?\",\"\")","v":""},null,null,null,null,null,null,null,null,null,null,null,0,"Unterrichtseinheiten"]
[null,{"$f":"IF($O$10=\"ja\",\"Maximale mögliche Anzahl an Unterrichtseinheiten\",\"\")","v":""},null,null,null,null,null,null,null,null,null,null,null,{"$f":"IF(O10=\"ja\",(N11*2)/3,0)","v":0},"Unterrichtseinheiten"]
["2.","Voraussichtl. Teilnehmerzahl",null,15,"Einzelmaßnahme §45 = 1 , Gruppenmaßnahmen §45 / §81 min. 15 Teilnehmer, bei Unterschreitung bitte Begründung beilegen"]
["3.","Unterrichtseinheiten",null,null,null,null,null,null,"Eingabe",null,null,null,null,"Dauer der Unterrichtseinheit",null,"kalkuliert"]
[null,null,null,"theoretische Unterweisung",null,null,null,null,null,"Unterrichtseinheiten",null,null,null,45,"Minuten",{"$f":"I15*N15/45","v":0}]
[null,null,null,"praktische Unterweisung",null,null,null,null,0,"Unterrichtseinheiten",null,null,null,45,"Minuten",{"$f":"I16*N16/45","v":0}]
[null,null,null,"kostenpflichtiger Berufsschulunterricht",null,null,null,null,null,"Unterrichtseinheiten",null,null,null,45,"Minuten",{"$f":"I17*N17/45","v":0}]
[null,null,null,"kostenfreier Unterricht der Berufsschule",null,null,null,null,null,"Unterrichtseinheiten",null,null,null,45,"Minuten",{"$f":"I18*N18/45","v":0}]
[null,null,null,"Praktikum",null,null,null,null,null,"Praktikumseinheiten",null,null,null,60,"Minuten",{"$f":"I19","v":0}]
[null,null,null,"Gesamt Unterrichts- und Praktikumseinheiten",null,null,null,null,null,"Unterrichtseinheiten",null,null,null,null,null,{"$f":"SUM(P15:P19)","v":0}]
[null,null,null,"Gesamt förderbare Unterrichtseinheiten",null,null,null,null,{"$f":"IF(O9=\"ja\",I20-I18,I20-I19-I18)","v":0},"Unterrichtseinheiten",null,null,null,null,null,{"$f":"IF(O9=\"ja\",P20-P18,P20-P19-P18)","v":0}]
[]
["4.","Kosten"]
[null,"a)","Lehrpersonal","Lehr- und Fachkräfte"]
[null,null,"(die Kosten verstehen sich einschließlich Lohnnebenkosten und evtl. Dozentengemeinkosten)","davon",null,null,null,null,null,null,null,null,null,null,null,"Name der Lehrkraft (aus 1010_g3g Quali-Le…)"]
[null,null,null,"für den Maßnahmeleiter",null,null,null,null,"UE","x",null,null,"=",{"$f":"H26*K26","v":0},null,null,1]
[null,null,null,"für",null,null,null,null,"UE","x",null,null,"=",0,null,null,2]
[null,null,null,"für",null,null,null,null,"UE","x",null,null,"=",0,null,null,3]
[null,null,null,"für",null,null,null,null,"UE","x",null,null,"=",0,null,null,4]
[null,null,null,"für",null,null,null,null,"UE","x",null,null,"=",0,null,null,5]
[null,null,null,"für",null,null,null,null,"UE","x",null,null,"=",0,null,null,6]
[null,null,null,"für",null,null,null,null,"UE","x",null,null,"=",0,null,null,7]
[null,null,null,"für",null,null,null,null,"UE","x",null,null,"=",0,null,null,8]
[null,null,null,"für",null,null,null,null,"UE","x",null,null,"=",0,null,null,9]
[null,null,null,"für",null,null,null,null,"UE","x",null,null,"=",0,null,null,10]
[null,null,null,"für",null,null,null,null,"UE","x",null,null,"=",0,null,null,11]
[null,null,null,"für",null,null,null,null,"UE","x",null,null,"=",0,null,null,12]
[null,null,null,"für  sozialpädag. Betrreung",null,null,null,null,"UE","x",null,null,"=",0,null,null,13]
[null,null,1]
[null,null,null,"Summe Hauptamtliche Lehrkräfte 1",null,null,null,null,null,null,null,null,null,null,null,{"$f":"SUM(N26:N38)","v":0}]
[null,null,null,"Lehr- und Fachkräfte (weitere)"]
[null,null,null,"davon",null,null,null,null,null,null,null,null,null,null,null,"Name der Lehrkraft (aus 1010_g3g Quali-Le…)"]
[null,null,null,"für",null,null,null,null,"UE","x",null,null,"=",{"$f":"H43*K43","v":0},null,null,14]
[null,null,null,"für",null,null,null,null,"UE","x",null,null,"=",0,null,null,15]
[null,null,null,"für",null,null,null,null,"UE","x",null,null,"=",0,null,null,16]
[null,null,null,"für",null,null,null,null,"UE","x",null,null,"=",0,null,null,17]
[null,null,null,"für",null,null,null,null,"UE","x",null,null,"=",0,null,null,18]
[null,null,null,"für",null,null,null,null,"UE","x",null,null,"=",0,null,null,19]
[null,null,null,"Summe Hauptamtliche Lehrkräfte 2",null,null,null,null,null,null,null,null,null,null,null,{"$f":"SUM(N43:N48)","v":0}]
[null,null,null,"Summe Lehrkräfte",null,null,null,null,null,null,null,null,null,null,null,{"$f":"P40+P49","v":0}]
[null,"b)","Raumkosten"]
[null,null,"(Miet- u. Mietnebenkosten einschl. Reinigung, Heizung, Strom- u. Wasserverbrauch)",0,null,"für",null,"Woche(n)",null,"x",null,null,"=",{"$f":"G52*K52","v":0}]
[null,null,null,0,null,"bzw.",null,null,null,null,null,null,null,{"$f":"G53*K53","v":0}]
[null,null,null,0,null,"für",null,"UE",null,"x",null,null,"=",{"$f":"G54*K54","v":0}]
[null,null,null,"Summe Raumkosten",null,null,null,null,null,null,null,null,null,null,null,{"$f":"SUM(N52:N54)","v":0}]
[null,"c)","sächliche Kosten"]
[null,null,null,"davon:",null,null,null,null,null,null,null," / TN","=",{"$f":"K57*AnzahlTN","v":0}]
[null,null,null,null,null,null,null,null,null,null,null," / TN","=",0]
[null,null,null,null,null,null,null,null,null,null,null," / TN","=",0]
[null,null,null,null,null,null,null,null,null,null,null," / TN","=",0]
[null,null,null,null,null,null,null,null,null,null,0," / TN","=",0]
[null,null,null,null,null,null,null,null,null,null,0," / TN","=",0]
[null,null,null,null,null,null,null,null,null,null,0," / TN","=",0]
[null,null,null,null,null,null,null,null,null,null,0," / TN","=",0]
[null,null,null,null,null,null,null,null,null,null,0," / TN","=",0]
[null,null,null,null,null,null,null,null,null,null,0," / TN","=",0]
[null,null,null,"Summe sächliche Kosten",null,null,null,null,null,null,null,null,null,null,null,{"$f":"SUM(N57:N66)","v":0}]
[null,"d)","sonstige Kosten"]
[]
[]
[]
[]
[]
[]
[]
[null,null,null,"Summe sonstige Kosten",null,null,null,null,null,null,null,null,null,null,null,{"$f":"SUM(N69:N75)","v":0}]
[null,"e)","Verwaltungsbedarf"]
[null,null,null,null,null,"Personal- und Personalnebenkosten",null,null,null,"Anteil in %",null,null,null,{"$f":"L78*P50","v":0},null,{"$f":"N78","v":0}]
[null,null,null,null,null,"Sachkosten",null,null,null,null,null,null,null,null,null,{"$f":"N79","v":0}]
[null,null,null,"Summe Verwaltungsbedarf",null,null,null,null,null,null,null,null,null,null,null,{"$f":"SUM(P78:P79)","v":0}]
[null,null,null,"Summe Ziffer 4",null,null,null,null,null,null,null,null,null,null,null,{"$f":"P80+P76+P67+P55+P50","v":0}]
["5.","Praktikumsbetreuung"]
[null,null,null,null,null,null,null,null,"Std","x",null,null,"=",{"$f":"H83*K83","v":0}]
[null,null,null,"Fahrkosten für",null,null,null,0,"km","x",null,null,"=",{"$f":"H84*K84","v":0}]
[null,null,null,"Summe Praktikumsbetreuung",null,null,null,null,null,null,null,null,null,null,null,{"$f":"SUM(N83:N84)","v":0}]
["6.","Prüfungsgebühren"]
[null,null,null,null,null,"trägerinterne Prüfung",null,null,null,null,null,"/ TN","=",{"$f":"AnzahlTN*K87","v":0}]
[null,null,null,null,null,"Zwischenprüfung",null,null,null,null,null,"/ TN","=",{"$f":"AnzahlTN*K88","v":0}]
[null,null,null,null,null,"allgemein anerkannte Abschlußprüfung",null,null,null,null,null,"/ TN","=",{"$f":"AnzahlTN*K89","v":0}]
[null,null,null,"Summe Prüfungsgebühren",null,null,null,null,null,null,null,null,null,null,null,{"$f":"SUM(N87:N89)","v":0}]
["7.","Kosten für erwünschte zusätzliche Leistungen",null,"Art:",null,null,null,null,null,null,null,null,null,{"$f":"SUM(K91:K94)","v":0}]
[]
[]
[]
[null,null,null,"Summe zusätzliche Leistungen",null,null,null,null,null,null,null,null,null,null,null,{"$f":"SUM(N91:N94)","v":0}]
["8.","Unternehmen"]
[null,null,null,"Rückstellung für Unternehmensrisiken (max. 3%)",null,null,null,null,null,null,null,null,null,{"$f":"P99*L97","v":0}]
[null,null,null,"Gewinnaufschlag (max 5%)",null,null,null,null,null,null,null,null,null,{"$f":"P99*L98","v":0}]
["9.","Gesamtkosten (Ziff. 4.-7)",null,0,null,null,null,null,null,null,null,null,null,null,null,{"$f":"P81+P85+P90+P95","v":0}]
["10.","Abzug Zuschüsse Dritter",null,"Angabe Drittmittel ",null,null,null,null,null,"Zuschuss",null,"/ TN","=",{"$f":"AnzahlTN*K100","v":0},"Abzug in  Gesamtsumme berücksichtigt",{"$f":"-N100","v":0}]
[null,null,null,"Gesamtsumme",null,null,null,null,null,null,null,null,null,null,null,{"$f":"SUM(N97:N98,P99)-N100","v":0}]
["11.","Lehrgangsgebühren"]
[null,null,"Kosten"]
[null,null,"je Teilnehmer/UE",null,null,null,null,null,null,null,null,null,null,null,null,{"$f":"IF($P$101=0,,ROUND((P101/GUEnetto/AnzahlTN),2))","v":0}]
[null,null,"je Teilnehmer",null,null,null,null,null,null,null,null,null,null,null,null,{"$f":"P104*GUEnetto","v":0}]
["nur für fachliche Prüfung FKS pCC"]
[null,"soz.päd. Betreuung vorhanden",null,null,{"$f":"IF(C39=1,\"nein\",IF(C39=2,\"ja\",IF(C39=3,\"ja\",)))","v":"nein"}]
[null,null,"kalkulierter UE -Satz",null,"ohne soz. Betreuung",null,null,null,null,null,null,null,null,null,null,{"$f":"IF($P$101=0,,IF(C39=1,P104,IF(C39=2,P104-#REF!,IF(C39=3,P104-#REF!))))","v":0}]
[null,null,"je Teilnehmer/UE"]

{"sheet":"Erläuterung ","index":1,"n_rows":23,"n_cols":3,"rows_kept":23,"cut":false,"hidden":false,"merged":[[21,0,21,1],[22,0,22,1],[2,0,2,1],[16,2,18,2],[11,0,12,0],[11,1,12,1],[11,2,12,2]]}
[]
["Empfehlung des Beirates:"]
["Grundsätze zur Überprüfung von Maßnahmekalkulationen im Rahmen der Maßnahmezulassung nach § 179 ff. SGB III i. V. m. § 3 ff. AZAV durch die fachkundigen Stellen (gültig für Fachbereiche nach § 5 Abs 1 S. 3Nr.1 und 4 AZAV)"]
["gültig ab 18.01.2017 "]
[]
["1. Die Maßnahmekalkulation des Trägers muss eindeutig, in sich plausibel, nachvollziehbar und die einzelnen Kalkulationskategorien müssen abgegrenzt sowie zuordenbar sein. "]
["2. Dabei sind die Maßnahmekosten (Summe aller Aufwendungen des Trägers) bezogen auf die jeweilige Maßnahme zu kalkulieren."]
["3. Es werden Aufwendungen (auch Abschreibungskosten) und Erträge des Trägers berücksichtigt, die mit der Durchführung der jeweiligen Maßnahme im Zusammenhang stehen. "]
["4. Zuschüsse Dritter sind bei den Maßnahmekosten in Abzug zu bringen."]
[]
[]
[null,null,"Belege sind mit einzureichen !"]
[]
["Gemeinkosten und Gewinn","bezogen auf die jeweilige Maßnahme – müssen in einem angemessenen Verhältnis zu den übrigen Maßnahmekosten stehen.","z. B.:  Belege, Rechnungen, Dokumente"]
["Miet- und Personalkosten ","können anteilig für den Zeitraum, für den sie tatsächlich entstehenbin die Maßnahmekosten eingerechnet werden.","z. B. : Mietverträge, Rechungen, Nachweise der\nHonorar- u. Personalkosten"]
["Aufwände für Anteile beim Arbeitgeber bzw. in betrieblichen Lernphasen","können mit einbezogen werden und sind hierbei gesondert zu betrachten, da hierfür i.d.R. keine oder geringere Kosten anfallen","Nachweise dazu "]
[null,"Zur Wirtschaftlichkeit einer Maßnahme gehört, dass diese mit einer pädagogisch/methodisch-didaktisch und wirtschaftlich angemessenen Teilnehmerzahl konzipiert, zugelassen und durchgeführt wird.","Erläuterungen und Nachweise dazu "]
["Teilnehmerzahl ","Als angemessene Gruppengröße wird eine Teilnehmerzahl von fünfzehn angesehen. "]
[null,"Von dieser Teilnehmerzahl kann aus methodisch-didaktischen oder rechtlichen Gründen abgewichen werden, sofern die räumlichen, personellen und sonstigen Gegebenheiten des Trägers dies erlauben. Sofern eine Maßnahme begründet mit einer anderen Teilnehmerzahl als fünfzehn kalkuliert und zugelassen wird, ist diese Gruppengröße verbindlicher Bestandteil der Zulassung. "]
[]
[]
["Zu einer sachgerechten Prüfung gehört, dass die Entscheidung der fachkundigen Stelle über die Angemessenheit von Maßnahmekosten und -dauer sich nicht allein an Erfahrungs- und Vergleichswerten im Rahmen der Markterkundung orientiert, sondern auch an überprüfbaren objektiven Kriterien und Nachweisen. Eigenerklärungen des Trägers (ohne Nachweise) genügen diesen Anforderungen nicht"]
["Die Kalkulation des Trägers, die der Maßnahmezulassung zugrunde liegt, und die Kalkulationsprüfung der fachkundigen Stelle müssen nachvollziehbar dokumentiert sein; dies gilt auch für Änderungen nach der Zulassung"]